[Event "21st Open Gran Hotel Bali-B 2024"]
[Site "Benidorm"]
[Date "2024.11.30"]
[Round "2.1"]
[White "Mancebo Ibanez, Fernando"]
[Black "Tusu, Nicolae-Dan"]
[Result "1-0"]
[ECO "A52"]
[WhiteElo "1999"]
[BlackElo "1891"]
[Annotator "NA RC"]
[PlyCount "89"]
[EventDate "2024.11.26"]
[EventType "swiss"]
[EventCountry "ESP"]
[SourceTitle "playchess.com"]
[Source "ChessBase"]
[SourceQuality "1"]
[TimeControl "5400+30"]

1. d4 Nf6 {[%emt 0:03:22]} 2. c4 {[%emt 0:01:10]} e5 {[%emt 0:00:06]} 3. dxe5 {[%emt 0:00:07]} Ng4 {[%emt 0:00:07]} 4. Bf4 {[%emt 0:00:06]} Bb4+ {[%emt 0:00:10]} 5. Nc3 {[%emt 0:00:38]} Nc6 {[%emt 0:00:19]} 6. Nf3 {[%emt 0:00:16]} Qe7 {[%emt 0:00:15]} 7. Qd5 {[%emt 0:00:11]} Bxc3+ {[%emt 0:00:52]} 8. bxc3 {[%emt 0:00:05]} Qa3 {[%emt 0:01:54]} 9. Rc1 {[%emt 0:01:06]} f6 {[%emt 0:00:50]} 10. exf6 {[%emt 0:04:56]} Nxf6 {[%emt 0:00:07]} 11. Qd1 {[%emt 0:07:02]} d6 {[%emt 0:01:19]} 12. Qb3 {[%emt 0:00:30]} Qa5 {[%emt 0:02:25]} 13. g3 {[%emt 0:06:23]} Ne4 {[%emt 0:00:34]} 14. Be3 {[%emt 0:11:22]} O-O {[%emt 0:06:22]} 15. Bg2 {[%emt 0:03:26]} Qh5 {[%emt 0:01:22]} 16. O-O {[%emt 0:07:13]} Kh8 {[%emt 0:01:23]} 17. Rfd1 {[%emt 0:03:10]} Rb8 {[%emt 0:05:37]} 18. Qb5 {[%emt 0:01:42]} Qf7 {[%emt 0:01:57]} 19. Nd4 {[%emt 0:03:35]} Nxd4 {[%emt 0:03:58]} 20. cxd4 {[%emt 0:05:41]} Nf6 {[%emt 0:03:38]} 21. d5 {[%emt 0:05:03]} a6 {[%emt 0:00:56]} 22. Qb2 {[%emt 0:00:18]} Bf5 {[%emt 0:04:59]} 23. Ba7 {[%emt 0:03:00]} Ra8 {[%emt 0:00:16]} 24. Bd4 {[%emt 0:00:04]} Ne4 {[%emt 0:02:10]} 25. f3 {[%emt 0:00:34]} Nc5 {[%emt 0:01:58]} 26. e4 {[%emt 0:01:04]} Bc8 {[%emt 0:02:28]} 27. Bxc5 {[%emt 0:03:54]} dxc5 {[%emt 0:00:06]} 28. e5 {[%emt 0:00:05]} Rb8 {[%emt 0:03:23]} 29. e6 {[%emt 0:00:40]} Qe7 {[%emt 0:00:23]} 30. f4 {[%emt 0:02:57]} b5 {[%emt 0:00:07]} 31. Be4 {[%emt 0:00:48]} Bb7 {[%emt 0:00:53]} 32. Qe5 {[%emt 0:29:24]} Rf6 {[%emt 0:02:26]} 33. f5 {[%emt 0:00:00]} Rd8 {[%emt 0:02:06]} 34. Qf4 {[%emt 0:00:00]} g6 {[%emt 0:01:45]} 35. g4 {[%emt 0:00:00]} gxf5 {[%emt 0:02:16]} 36. Bxf5 {[%emt 0:00:00]} bxc4 {[%emt 0:06:52]} 37. Qe5 {[%emt 0:00:00]} Qg7 {[%emt 0:00:26]} 38. Rxc4 {[%emt 0:00:00]} Rg8 {[%emt 0:03:00]} 39. Rxc5 {[%emt 0:00:00]} Rxf5 {[%emt 0:03:14]} 40. Qxf5 {[%emt 0:00:00]} Rf8 {[%emt 0:10:08]} 41. Rxc7 {[%emt 0:00:00]} Rxf5 {[%emt 0:01:54]} 42. Rxg7 {[%emt 0:00:00]} Rxd5 {[%emt 0:00:11]} 43. Rxd5 {[%emt 0:00:00]} Bxd5 {[%emt 0:00:09]} 44. e7 {[%emt 0:00:00]} Bc6 {[%emt 0:00:18]} 45. Rf7 {[%emt 0:00:00]} 1-0

[Event "21st Open Gran Hotel Bali-B 2024"]
[Site "Benidorm"]
[Date "2024.11.30"]
[Round "2.2"]
[White "Garcia-Ballesteros Banos, Juan A"]
[Black "Robledo Sanchez, Saul"]
[Result "0-1"]
[ECO "D02"]
[WhiteElo "1893"]
[BlackElo "1996"]
[Annotator "NA RC"]
[PlyCount "110"]
[EventDate "2024.11.26"]
[EventType "swiss"]
[EventCountry "ESP"]
[SourceTitle "playchess.com"]
[Source "ChessBase"]
[SourceQuality "1"]
[TimeControl "5400+30"]

1. d4 {[%emt 0:06:28]} d5 {[%emt 0:01:37]} 2. Bf4 {[%emt 0:00:06]} Nf6 {[%emt 0:01:58]} 3. e3 {[%emt 0:00:09]} c5 {[%emt 0:02:05]} 4. c3 {[%emt 0:01:42]} Nc6 {[%emt 0:01:22]} 5. Nf3 {[%emt 0:00:51]} Bg4 {[%emt 0:02:08]} 6. Be2 {[%emt 0:04:41]} e6 {[%emt 0:05:52]} 7. Nbd2 {[%emt 0:04:47]} Be7 {[%emt 0:03:12]} 8. Ne5 {[%emt 0:03:07]} Bxe2 {[%emt 0:03:52]} 9. Qxe2 {[%emt 0:00:34]} Qb6 {[%emt 0:14:05]} 10. Rb1 {[%emt 0:02:23]} h6 {[%emt 0:06:12]} 11. Bg3 {[%emt 0:02:38]} Nxe5 {[%emt 0:08:41]} 12. Bxe5 {[%emt 0:02:10]} O-O {[%emt 0:03:28]} 13. h4 {[%emt 0:19:11]} Nd7 {[%emt 0:04:30]} 14. Bf4 {[%emt 0:04:35]} Bd6 {[%emt 0:04:45]} 15. Qg4 {[%emt 0:17:05]} Bxf4 {[%emt 0:04:15]} 16. Qxf4 {[%emt 0:00:11]} Rae8 {[%emt 0:00:56]} 17. Nf3 {[%emt 0:02:00]} cxd4 {[%emt 0:02:23]} 18. Qxd4 {[%emt 0:03:30]} Qb5 {[%emt 0:09:32]} 19. a4 {[%emt 0:03:10]} Qa6 {[%emt 0:02:25]} 20. Qb4 {[%emt 0:03:10]} Rc8 {[%emt 0:02:11]} 21. Nd4 {[%emt 0:03:36]} Nc5 {[%emt 0:02:19]} 22. Qb5 {[%emt 0:01:33]} Qxa4 {[%emt 0:01:07]} 23. Qxa4 {[%emt 0:01:34]} Nxa4 {[%emt 0:00:01]} 24. f4 {[%emt 0:00:22]} a6 {[%emt 0:00:50]} 25. Kd2 {[%emt 0:00:22]} Nc5 {[%emt 0:00:10]} 26. Rhg1 {[%emt 0:01:50]} Rfe8 {[%emt 0:00:52]} 27. g4 {[%emt 0:00:50]} Ne4+ {[%emt 0:02:53]} 28. Kd3 {[%emt 0:00:01]} Nd6 {[%emt 0:01:39]} 29. g5 {[%emt 0:00:34]} h5 {[%emt 0:01:40]} 30. Nf3 {[%emt 0:02:04]} g6 {[%emt 0:01:38]} 31. Ra1 {[%emt 0:00:53]} Re7 {[%emt 0:00:51]} 32. Ra4 {[%emt 0:00:18]} Rcc7 {[%emt 0:02:10]} 33. Rga1 {[%emt 0:00:22]} Nc4 {[%emt 0:01:05]} 34. Rb4 {[%emt 0:00:54]} e5 {[%emt 0:01:31]} 35. fxe5 {[%emt 0:00:01]} Nxe5+ {[%emt 0:00:01]} 36. Nxe5 {[%emt 0:00:01]} Rxe5 {[%emt 0:00:02]} 37. Rf4 {[%emt 0:05:12]} Rce7 {[%emt 0:00:52]} 38. Kd4 {[%emt 0:00:01]} Rxe3 {[%emt 0:01:02]} 39. Kxd5 {[%emt 0:00:05]} Rd7+ {[%emt 0:00:12]} 40. Kc4 {[%emt 0:00:12]} Re2 {[%emt 0:00:22]} 41. b3 {[%emt 0:01:34]} Re3 {[%emt 0:00:51]} 42. Kb4 {[%emt 0:02:46]} Kg7 {[%emt 0:01:58]} 43. Raf1 {[%emt 0:01:32]} Re6 {[%emt 0:00:51]} 44. R1f3 {[%emt 0:01:12]} Rb6+ {[%emt 0:00:50]} 45. Ka4 {[%emt 0:00:20]} Kg8 {[%emt 0:00:40]} 46. Ka3 {[%emt 0:00:28]} Rbd6 {[%emt 0:00:25]} 47. Kb4 {[%emt 0:00:40]} Re6 {[%emt 0:00:19]} 48. Rf2 {[%emt 0:00:49]} Rde7 {[%emt 0:00:42]} 49. c4 {[%emt 0:01:01]} Rb6+ {[%emt 0:00:44]} 50. Kc3 {[%emt 0:00:38]} Rbe6 {[%emt 0:00:41]} 51. Kd4 {[%emt 0:00:27]} Rd7+ {[%emt 0:00:24]} 52. Kc3 {[%emt 0:00:33]} Rc7 {[%emt 0:00:34]} 53. Kd4 {[%emt 0:00:44]} Rd6+ {[%emt 0:00:35]} 54. Ke5 {[%emt 0:00:45]} Rd3 {[%emt 0:00:12]} 55. R2f3 {[%emt 0:00:33]} Re7+ {[%emt 0:00:08]} 0-1

[Event "21st Open Gran Hotel Bali-B 2024"]
[Site "Benidorm"]
[Date "2024.11.30"]
[Round "2.3"]
[White "Bukharkov, Stepan"]
[Black "San Juan Morigosa, Isaura"]
[Result "1-0"]
[ECO "E62"]
[WhiteElo "1991"]
[BlackElo "1888"]
[Annotator "NA RC"]
[PlyCount "77"]
[EventDate "2024.11.26"]
[EventType "swiss"]
[EventCountry "ESP"]
[SourceTitle "playchess.com"]
[Source "ChessBase"]
[SourceQuality "1"]
[TimeControl "5400+30"]

1. Nf3 {[%emt 0:00:02]} Nf6 {[%emt 0:14:22]} 2. c4 {[%emt 0:00:06]} g6 {[%emt 0:01:22]} 3. g3 {[%emt 0:00:05]} Bg7 {[%emt 0:00:03]} 4. Bg2 {[%emt 0:00:04]} O-O {[%emt 0:00:04]} 5. O-O {[%emt 0:00:05]} d6 {[%emt 0:00:28]} 6. Nc3 {[%emt 0:00:05]} c6 {[%emt 0:03:29]} 7. d4 {[%emt 0:01:14]} Qc7 {[%emt 0:02:22]} 8. b3 {[%emt 0:01:42]} a5 {[%emt 0:01:30]} 9. Bb2 {[%emt 0:01:28]} Na6 {[%emt 0:03:43]} 10. e4 {[%emt 0:14:32]} e5 {[%emt 0:00:10]} 11. d5 {[%emt 0:01:25]} Rb8 {[%emt 0:13:52]} 12. Qe2 {[%emt 0:03:29]} Bg4 {[%emt 0:02:47]} 13. h3 {[%emt 0:04:05]} Bxf3 {[%emt 0:00:05]} 14. Bxf3 {[%emt 0:00:07]} Nd7 {[%emt 0:00:32]} 15. Rad1 {[%emt 0:01:54]} Ndc5 {[%emt 0:00:14]} 16. Qc2 {[%emt 0:12:24]} f5 {[%emt 0:01:35]} 17. a3 {[%emt 0:01:20]} f4 {[%emt 0:13:14]} 18. Kg2 {[%emt 0:11:34]} g5 {[%emt 0:05:00]} 19. Rb1 {[%emt 0:01:22]} Rf6 {[%emt 0:00:28]} 20. Bc1 {[%emt 0:00:32]} Rbf8 {[%emt 0:04:01]} 21. b4 {[%emt 0:03:51]} Nd7 {[%emt 0:00:14]} 22. dxc6 {[%emt 0:04:37]} bxc6 {[%emt 0:08:39]} 23. b5 {[%emt 0:00:48]} Nab8 {[%emt 0:09:23]} 24. bxc6 {[%emt 0:01:44]} Qxc6 {[%emt 0:00:07]} 25. Nd5 {[%emt 0:00:17]} R6f7 {[%emt 0:00:04]} 26. Bh5 {[%emt 0:01:20]} f3+ {[%emt 0:00:44]} 27. Kh2 {[%emt 0:00:26]} h6 {[%emt 0:04:13]} 28. Be3 {[%emt 0:01:19]} Na6 {[%emt 0:03:40]} 29. Bxf7+ {[%emt 0:00:59]} Rxf7 {[%emt 0:00:04]} 30. Qb3 {[%emt 0:00:27]} a4 {[%emt 0:01:27]} 31. Qb5 {[%emt 0:00:18]} Qxb5 {[%emt 0:00:12]} 32. cxb5 {[%emt 0:00:11]} Nac5 {[%emt 0:00:05]} 33. b6 {[%emt 0:01:12]} Nb7 {[%emt 0:03:19]} 34. Rfc1 {[%emt 0:00:32]} Ndc5 {[%emt 0:00:24]} 35. Bxc5 {[%emt 0:00:18]} dxc5 {[%emt 0:00:06]} 36. Rc4 {[%emt 0:00:16]} Bf8 {[%emt 0:03:56]} 37. Rxa4 {[%emt 0:00:44]} Bd6 {[%emt 0:00:05]} 38. Ra7 {[%emt 0:00:30]} Kg7 {[%emt 0:00:26]} 39. a4 {[%emt 0:00:45]} 1-0

[Event "21st Open Gran Hotel Bali-B 2024"]
[Site "Benidorm"]
[Date "2024.11.30"]
[Round "2.4"]
[White "Ferro Martinez, Damian"]
[Black "Navarro Rico, Lluis"]
[Result "1-0"]
[ECO "A13"]
[WhiteElo "1890"]
[BlackElo "1989"]
[Annotator "NA RC"]
[PlyCount "61"]
[EventDate "2024.11.26"]
[EventType "swiss"]
[EventCountry "ESP"]
[SourceTitle "playchess.com"]
[Source "ChessBase"]
[SourceQuality "1"]
[TimeControl "5400+30"]

1. c4 {[%emt 0:00:48]} Nf6 {[%emt 0:05:27]} 2. Nf3 {[%emt 0:00:29]} e6 {[%emt 0:00:26]} 3. g3 {[%emt 0:00:57]} d5 {[%emt 0:00:09]} 4. Bg2 {[%emt 0:00:07]} dxc4 {[%emt 0:01:13]} 5. Qa4+ {[%emt 0:00:34]} Bd7 {[%emt 0:00:43]} 6. Qxc4 {[%emt 0:00:06]} Bc6 {[%emt 0:00:03]} 7. O-O {[%emt 0:01:40]} Be7 {[%emt 0:00:42]} 8. Nc3 {[%emt 0:02:41]} O-O {[%emt 0:05:26]} 9. d4 {[%emt 0:05:10]} a6 {[%emt 0:05:06]} 10. Bf4 {[%emt 0:03:39]} b5 {[%emt 0:01:53]} 11. Qb3 {[%emt 0:00:43]} Nh5 {[%emt 0:11:42]} 12. Be3 {[%emt 0:03:56]} Nf6 {[%emt 0:15:08]} 13. a4 {[%emt 0:04:07]} b4 {[%emt 0:01:05]} 14. Na2 {[%emt 0:05:27]} Bd5 {[%emt 0:01:01]} 15. Qd3 {[%emt 0:03:29]} Be4 {[%emt 0:00:23]} 16. Qc4 {[%emt 0:04:03]} Nd5 {[%emt 0:10:01]} 17. a5 {[%emt 0:06:53]} Nxe3 {[%emt 0:05:59]} 18. fxe3 {[%emt 0:00:07]} Nc6 {[%emt 0:00:32]} 19. Nc1 {[%emt 0:04:36]} Rb8 {[%emt 0:15:46]} 20. Bh3 {[%emt 0:15:44]} Rb5 {[%emt 0:07:52]} 21. Nb3 {[%emt 0:17:43]} Bg5 {[%emt 0:06:29]} 22. Nxg5 {[%emt 0:05:50]} Qxg5 {[%emt 0:00:08]} 23. Rf4 {[%emt 0:00:09]} Bd5 {[%emt 0:01:04]} 24. Qd3 {[%emt 0:00:56]} Bxb3 {[%emt 0:00:59]} 25. Qxb3 {[%emt 0:00:02]} Nxa5 {[%emt 0:01:24]} 26. Qc2 {[%emt 0:02:40]} c5 {[%emt 0:00:28]} 27. Raf1 {[%emt 0:00:04]} b3 {[%emt 0:01:50]} 28. Qc1 {[%emt 0:02:33]} Qe7 {[%emt 0:00:50]} 29. Qc3 {[%emt 0:04:26]} c4 {[%emt 0:00:09]} 30. Ra1 {[%emt 0:01:17]} Rfb8 {[%emt 0:00:44]} 31. Rxa5 {[%emt 0:00:35]} 1-0

[Event "21st Open Gran Hotel Bali-B 2024"]
[Site "Benidorm"]
[Date "2024.11.30"]
[Round "2.5"]
[White "Rojas Fernandez, Andres"]
[Black "Banegas Gomez, Ricardo"]
[Result "0-1"]
[ECO "A43"]
[WhiteElo "1886"]
[BlackElo "1984"]
[Annotator "NA RC"]
[PlyCount "128"]
[EventDate "2024.11.26"]
[EventType "swiss"]
[EventCountry "ESP"]
[SourceTitle "playchess.com"]
[Source "ChessBase"]
[SourceQuality "1"]
[TimeControl "5400+30"]

1. d4 {[%emt 0:00:04]} c5 {[%emt 0:00:11]} 2. d5 {[%emt 0:00:38]} Nf6 {[%emt 0:00:10]} 3. Nc3 {[%emt 0:00:22]} g6 {[%emt 0:00:20]} 4. e4 {[%emt 0:00:33]} d6 {[%emt 0:00:04]} 5. Nf3 {[%emt 0:01:02]} Bg7 {[%emt 0:00:07]} 6. Bd3 {[%emt 0:02:32]} O-O {[%emt 0:00:55]} 7. O-O {[%emt 0:00:24]} Na6 {[%emt 0:02:10]} 8. Bd2 {[%emt 0:13:20]} Rb8 {[%emt 0:15:46]} 9. Re1 {[%emt 0:16:14]} Nc7 {[%emt 0:10:22]} 10. a4 {[%emt 0:04:38]} e6 {[%emt 0:05:13]} 11. dxe6 {[%emt 0:06:24]} Nxe6 {[%emt 0:08:01]} 12. Bc4 {[%emt 0:11:27]} a6 {[%emt 0:12:53]} 13. Qe2 {[%emt 0:07:40]} Nd4 {[%emt 0:06:22]} 14. Qd3 {[%emt 0:01:14]} Ng4 {[%emt 0:04:24]} 15. Bg5 {[%emt 0:04:58]} Nxf3+ {[%emt 0:02:11]} 16. gxf3 {[%emt 0:02:18]} Qxg5 {[%emt 0:00:11]} 17. fxg4 {[%emt 0:00:06]} Qxg4+ {[%emt 0:01:09]} 18. Qg3 {[%emt 0:03:45]} Bxc3 {[%emt 0:10:48]} 19. bxc3 {[%emt 0:00:24]} Qxg3+ {[%emt 0:02:39]} 20. hxg3 {[%emt 0:00:02]} Be6 {[%emt 0:00:17]} 21. Bxe6 {[%emt 0:04:18]} fxe6 {[%emt 0:00:04]} 22. Red1 {[%emt 0:00:09]} Rbd8 {[%emt 0:02:46]} 23. Rab1 {[%emt 0:01:42]} Rd7 {[%emt 0:00:44]} 24. Rb6 {[%emt 0:01:57]} Rf3 {[%emt 0:01:32]} 25. Rbxd6 {[%emt 0:16:49]} Rxd6 {[%emt 0:00:13]} 26. Rxd6 {[%emt 0:00:00]} Rxc3 {[%emt 0:00:07]} 27. Rxe6 {[%emt 0:00:00]} Rxc2 {[%emt 0:00:21]} 28. Rb6 {[%emt 0:00:00]} Rc4 {[%emt 0:00:40]} 29. Rxb7 {[%emt 0:00:00]} Rxa4 {[%emt 0:06:04]} 30. Rc7 {[%emt 0:00:00]} c4 {[%emt 0:01:53]} 31. Kf1 {[%emt 0:00:00]} Rb4 {[%emt 0:00:39]} 32. Ra7 {[%emt 0:00:00]} c3 {[%emt 0:00:59]} 33. Ke2 {[%emt 0:00:00]} Rxe4+ {[%emt 0:01:19]} 34. Kd3 {[%emt 0:00:00]} Rc4 {[%emt 0:01:10]} 35. Kc2 {[%emt 0:00:00]} Rc6 {[%emt 0:00:07]} 36. Rb7 {[%emt 0:00:00]} g5 {[%emt 0:00:21]} 37. Rd7 {[%emt 0:00:00]} h6 {[%emt 0:00:44]} 38. Re7 {[%emt 0:00:00]} Kf8 {[%emt 0:00:16]} 39. Rd7 {[%emt 0:00:00]} Ke8 {[%emt 0:00:06]} 40. Rh7 {[%emt 0:00:00]} Kd8 {[%emt 0:00:15]} 41. f4 {[%emt 0:00:08]} gxf4 {[%emt 0:00:55]} 42. gxf4 {[%emt 0:00:01]} a5 {[%emt 0:00:42]} 43. Ra7 {[%emt 0:00:44]} Rc5 {[%emt 0:00:14]} 44. Rh7 {[%emt 0:00:06]} h5 {[%emt 0:00:11]} 45. Ra7 {[%emt 0:05:36]} Ke8 {[%emt 0:00:18]} 46. Rb7 {[%emt 0:00:27]} Kf8 {[%emt 0:00:18]} 47. Rd7 {[%emt 0:02:08]} Kg8 {[%emt 0:00:09]} 48. Re7 {[%emt 0:00:13]} h4 {[%emt 0:02:24]} 49. Re3 {[%emt 0:00:28]} Rc4 {[%emt 0:01:00]} 50. Rh3 {[%emt 0:01:15]} Rxf4 {[%emt 0:00:11]} 51. Kxc3 {[%emt 0:00:07]} Kg7 {[%emt 0:00:11]} 52. Kd2 {[%emt 0:00:12]} Kg6 {[%emt 0:00:11]} 53. Ra3 {[%emt 0:01:10]} a4 {[%emt 0:00:10]} 54. Rc3 {[%emt 0:01:04]} Kg5 {[%emt 0:00:19]} 55. Rc8 {[%emt 0:00:17]} Kg4 {[%emt 0:00:31]} 56. Ke3 {[%emt 0:00:22]} Rb4 {[%emt 0:01:29]} 57. Rg8+ {[%emt 0:00:24]} Kh3 {[%emt 0:00:14]} 58. Ra8 {[%emt 0:01:04]} Kg3 {[%emt 0:00:21]} 59. Rg8+ {[%emt 0:00:12]} Rg4 {[%emt 0:00:18]} 60. Rf8 {[%emt 0:00:07]} h3 {[%emt 0:00:43]} 61. Rf3+ {[%emt 0:00:21]} Kg2 {[%emt 0:00:05]} 62. Rf2+ {[%emt 0:00:20]} Kg1 {[%emt 0:00:10]} 63. Rc2 {[%emt 0:01:25]} h2 {[%emt 0:03:11]} 64. Rc1+ {[%emt 0:00:36]} Kg2 {[%emt 0:00:04]} 0-1

[Event "21st Open Gran Hotel Bali-B 2024"]
[Site "Benidorm"]
[Date "2024.11.30"]
[Round "2.6"]
[White "Bendriss, Hatim"]
[Black "Gyldenas, Ole Jorn"]
[Result "1/2-1/2"]
[ECO "D00"]
[WhiteElo "1984"]
[BlackElo "1885"]
[Annotator "NA RC"]
[PlyCount "90"]
[EventDate "2024.11.26"]
[EventType "swiss"]
[EventCountry "ESP"]
[SourceTitle "playchess.com"]
[Source "ChessBase"]
[SourceQuality "1"]
[TimeControl "5400+30"]

1. d4 {[%emt 0:04:36]} Nf6 {[%emt 0:00:32]} 2. Bg5 {[%emt 0:00:26]} d5 {[%emt 0:01:47]} 3. Bxf6 {[%emt 0:01:35]} exf6 {[%emt 0:00:08]} 4. e3 {[%emt 0:00:20]} Bd6 {[%emt 0:01:10]} 5. Bd3 {[%emt 0:04:45]} c6 {[%emt 0:01:09]} 6. c3 {[%emt 0:01:28]} f5 {[%emt 0:05:02]} 7. Nf3 {[%emt 0:03:25]} f4 {[%emt 0:04:53]} 8. e4 {[%emt 0:01:25]} dxe4 {[%emt 0:05:56]} 9. Bxe4 {[%emt 0:00:11]} O-O {[%emt 0:00:59]} 10. O-O {[%emt 0:02:32]} Nd7 {[%emt 0:01:19]} 11. Nbd2 {[%emt 0:00:54]} Nf6 {[%emt 0:00:23]} 12. Bd3 {[%emt 0:00:10]} Bg4 {[%emt 0:04:30]} 13. Qc2 {[%emt 0:06:21]} Bxf3 {[%emt 0:05:46]} 14. Nxf3 {[%emt 0:00:13]} Qc7 {[%emt 0:00:17]} 15. c4 {[%emt 0:04:15]} c5 {[%emt 0:05:35]} 16. d5 {[%emt 0:00:08]} Rfe8 {[%emt 0:00:10]} 17. Rfd1 {[%emt 0:02:12]} Rad8 {[%emt 0:00:28]} 18. Rac1 {[%emt 0:00:25]} g6 {[%emt 0:04:29]} 19. a3 {[%emt 0:07:31]} Ng4 {[%emt 0:04:36]} 20. b4 {[%emt 0:08:24]} b6 {[%emt 0:01:24]} 21. Qb3 {[%emt 0:03:11]} Ne5 {[%emt 0:03:05]} 22. Ne1 {[%emt 0:03:49]} Qe7 {[%emt 0:06:04]} 23. b5 {[%emt 0:04:06]} Qg5 {[%emt 0:07:44]} 24. Be2 {[%emt 0:00:24]} h5 {[%emt 0:03:22]} 25. a4 {[%emt 0:01:33]} Ng4 {[%emt 0:02:50]} 26. Nf3 {[%emt 0:00:25]} Qf6 {[%emt 0:00:10]} 27. Bf1 {[%emt 0:00:27]} g5 {[%emt 0:00:54]} 28. Re1 {[%emt 0:06:21]} Rxe1 {[%emt 0:09:10]} 29. Rxe1 {[%emt 0:00:06]} Nxf2 {[%emt 0:03:05]} 30. Kxf2 {[%emt 0:01:05]} g4 {[%emt 0:00:07]} 31. Kg1 {[%emt 0:00:49]} gxf3 {[%emt 0:01:43]} 32. Qxf3 {[%emt 0:00:06]} h4 {[%emt 0:06:48]} 33. Bd3 {[%emt 0:02:21]} Kf8 {[%emt 0:04:16]} 34. Kf1 {[%emt 0:00:43]} Re8 {[%emt 0:00:36]} 35. Rxe8+ {[%emt 0:01:17]} Kxe8 {[%emt 0:00:06]} 36. Qe4+ {[%emt 0:00:26]} Qe5 {[%emt 0:00:30]} 37. h3 {[%emt 0:01:18]} Qxe4 {[%emt 0:00:08]} 38. Bxe4 {[%emt 0:00:10]} Ke7 {[%emt 0:00:27]} 39. Kf2 {[%emt 0:00:14]} Kf6 {[%emt 0:00:09]} 40. Kf3 {[%emt 0:00:36]} Kg5 {[%emt 0:00:08]} 41. Bh7 {[%emt 0:00:43]} f5 {[%emt 0:00:19]} 42. Bg8 {[%emt 0:00:16]} Be5 {[%emt 0:00:12]} 43. Ke2 {[%emt 0:00:27]} Bd6 {[%emt 0:00:19]} 44. Be6 {[%emt 0:00:16]} Be5 {[%emt 0:00:06]} 45. a5 {[%emt 0:03:06]} Bd6 {[%emt 0:00:14]} 1/2-1/2

[Event "21st Open Gran Hotel Bali-B 2024"]
[Site "Benidorm"]
[Date "2024.11.30"]
[Round "2.7"]
[White "Burriel Ureta, Raul"]
[Black "Donate Villalba, Juan Francisco"]
[Result "1/2-1/2"]
[ECO "C63"]
[WhiteElo "1881"]
[BlackElo "1984"]
[Annotator "NA RC"]
[PlyCount "38"]
[EventDate "2024.11.26"]
[EventType "swiss"]
[EventCountry "ESP"]
[SourceTitle "playchess.com"]
[Source "ChessBase"]
[SourceQuality "1"]
[TimeControl "5400+30"]

1. e4 {[%emt 0:00:01]} e5 {[%emt 0:06:50]} 2. Nf3 {[%emt 0:00:09]} Nc6 {[%emt 0:00:05]} 3. Bb5 {[%emt 0:00:03]} f5 {[%emt 0:00:18]} 4. Nc3 {[%emt 0:00:22]} fxe4 {[%emt 0:00:28]} 5. Nxe4 {[%emt 0:00:02]} d5 {[%emt 0:01:46]} 6. Nxe5 {[%emt 0:00:34]} dxe4 {[%emt 0:00:38]} 7. Nxc6 {[%emt 0:00:21]} Qg5 {[%emt 0:02:37]} 8. Qe2 {[%emt 0:00:49]} Nf6 {[%emt 0:23:23]} 9. f4 {[%emt 0:14:39]} Qxf4 {[%emt 0:11:48]} 10. Rf1 {[%emt 0:01:59]} Qxh2 {[%emt 0:16:24]} 11. Nxa7+ {[%emt 0:30:32]} Bd7 {[%emt 0:11:28]} 12. Bxd7+ {[%emt 0:04:48]} Kxd7 {[%emt 0:00:12]} 13. Qb5+ {[%emt 0:10:55]} Kd8 {[%emt 0:04:16]} 14. Qxb7 {[%emt 0:08:25]} Qh4+ {[%emt 0:01:12]} 15. Ke2 {[%emt 0:01:12]} Qh5+ {[%emt 0:01:18]} 16. Ke1 {[%emt 0:03:39]} Qh4+ {[%emt 0:01:36]} 17. Ke2 {[%emt 0:02:01]} Qh5+ {[%emt 0:01:32]} 18. Ke1 {[%emt 0:02:26]} Qh4+ {[%emt 0:02:38]} 19. Kd1 {[%emt 0:02:05]} Qh5+ {[%emt 0:00:58]} 1/2-1/2

[Event "21st Open Gran Hotel Bali-B 2024"]
[Site "Benidorm"]
[Date "2024.11.30"]
[Round "2.8"]
[White "Westerweele, Henrik"]
[Black "Slettum, Karl Anker"]
[Result "1-0"]
[ECO "C50"]
[WhiteElo "1983"]
[BlackElo "1882"]
[Annotator "NA RC"]
[PlyCount "95"]
[EventDate "2024.11.26"]
[EventType "swiss"]
[EventCountry "ESP"]
[SourceTitle "playchess.com"]
[Source "ChessBase"]
[SourceQuality "1"]
[TimeControl "5400+30"]

1. e4 {[%emt 0:00:04]} e5 {[%emt 0:00:04]} 2. Nf3 {[%emt 0:00:56]} Nc6 {[%emt 0:00:05]} 3. Bc4 {[%emt 0:01:02]} Nf6 {[%emt 0:00:07]} 4. d3 {[%emt 0:00:31]} Bc5 {[%emt 0:01:06]} 5. a4 {[%emt 0:01:14]} d5 {[%emt 0:01:55]} 6. exd5 {[%emt 0:01:29]} Nxd5 {[%emt 0:00:16]} 7. O-O {[%emt 0:04:03]} Bg4 {[%emt 0:01:24]} 8. c3 {[%emt 0:01:39]} O-O {[%emt 0:14:29]} 9. Nbd2 {[%emt 0:04:36]} Nf6 {[%emt 0:03:42]} 10. a5 {[%emt 0:04:53]} a6 {[%emt 0:02:10]} 11. Re1 {[%emt 0:02:11]} Re8 {[%emt 0:05:00]} 12. Qb3 {[%emt 0:02:59]} Qd7 {[%emt 0:01:28]} 13. Ng5 {[%emt 0:01:09]} Bh5 {[%emt 0:13:18]} 14. Nge4 {[%emt 0:08:35]} Nxe4 {[%emt 0:01:30]} 15. Nxe4 {[%emt 0:05:21]} Ba7 {[%emt 0:01:03]} 16. Be3 {[%emt 0:01:34]} Bxe3 {[%emt 0:02:27]} 17. Rxe3 {[%emt 0:00:25]} Kh8 {[%emt 0:03:16]} 18. Nc5 {[%emt 0:06:16]} Qf5 {[%emt 0:04:50]} 19. Qxb7 {[%emt 0:03:15]} Ne7 {[%emt 0:05:00]} 20. Qxc7 {[%emt 0:04:10]} f6 {[%emt 0:05:32]} 21. Qd7 {[%emt 0:06:04]} Rac8 {[%emt 0:02:33]} 22. Be6 {[%emt 0:04:21]} Qg5 {[%emt 0:05:19]} 23. Ne4 {[%emt 0:01:07]} Qg6 {[%emt 0:02:29]} 24. Nd6 {[%emt 0:02:54]} Rcd8 {[%emt 0:03:21]} 25. Qc7 {[%emt 0:00:33]} Rxd6 {[%emt 0:00:46]} 26. Qxd6 {[%emt 0:00:10]} Nf5 {[%emt 0:02:17]} 27. Bxf5 {[%emt 0:00:48]} Qxf5 {[%emt 0:00:06]} 28. Qxa6 {[%emt 0:01:23]} Qd7 {[%emt 0:00:41]} 29. Qc4 {[%emt 0:03:50]} f5 {[%emt 0:00:13]} 30. Qa4 {[%emt 0:03:59]} Qa7 {[%emt 0:00:47]} 31. Rae1 {[%emt 0:01:36]} e4 {[%emt 0:00:49]} 32. dxe4 {[%emt 0:05:08]} f4 {[%emt 0:00:14]} 33. Rd3 {[%emt 0:00:45]} Rf8 {[%emt 0:00:36]} 34. Qb4 {[%emt 0:01:35]} Qf7 {[%emt 0:00:34]} 35. f3 {[%emt 0:00:30]} Re8 {[%emt 0:00:22]} 36. Red1 {[%emt 0:02:19]} h6 {[%emt 0:00:45]} 37. Rd8 {[%emt 0:00:54]} Kh7 {[%emt 0:00:08]} 38. Rxe8 {[%emt 0:00:18]} Qxe8 {[%emt 0:00:02]} 39. Qc5 {[%emt 0:00:57]} Qa4 {[%emt 0:00:41]} 40. Rd2 {[%emt 0:03:28]} Bg6 {[%emt 0:02:20]} 41. Qa3 {[%emt 0:00:17]} Qb5 {[%emt 0:00:28]} 42. a6 {[%emt 0:00:34]} Qb6+ {[%emt 0:00:15]} 43. Rd4 {[%emt 0:00:06]} Qa7 {[%emt 0:00:16]} 44. Qd6 {[%emt 0:01:52]} h5 {[%emt 0:00:23]} 45. b4 {[%emt 0:01:39]} Qf7 {[%emt 0:00:25]} 46. Qd5 {[%emt 0:00:41]} Qc7 {[%emt 0:00:22]} 47. Qc5 {[%emt 0:00:45]} Qf7 {[%emt 0:00:10]} 48. Rd5 {[%emt 0:00:42]} 1-0